[Event "Betsys MČR v online bleskovém šachu 2021"]
[Site "Chess.com"]
[Date "2021.04.17"]
[Round "13"]
[White "jonvon640"]
[Black "svTomas"]
[Result "1-0"]
[WhiteElo "1671"]
[BlackElo "1438"]
[TimeControl "180+1"]
[EndTime "11:12:55 PDT"]
[Termination "Uživatel jonvon640 zvítězil matem"]

1. e4 {[%clk 0:03:00.9]} 1... e5 {[%clk 0:02:49.7]} 2. Nf3 {[%clk 0:03:00.4]}
2... Nf6 {[%clk 0:02:49.5]} 3. Nc3 {[%clk 0:02:58.9]} 3... Bc5 {[%clk
0:02:48.2]} 4. Bc4 {[%clk 0:02:52.5]} 4... d5 {[%clk 0:02:45.7]} 5. Bxd5 {[%clk
0:02:45]} 5... c6 {[%clk 0:02:40.6]} 6. Bb3 {[%clk 0:02:43.5]} 6... Bg4 {[%clk
0:02:33.5]} 7. d3 {[%clk 0:02:40.7]} 7... h6 {[%clk 0:02:32.2]} 8. O-O {[%clk
0:02:39.4]} 8... Qc7 {[%clk 0:02:29.7]} 9. h3 {[%clk 0:02:34.7]} 9... Bxf3
{[%clk 0:02:25.2]} 10. Qxf3 {[%clk 0:02:34.7]} 10... Nbd7 {[%clk 0:02:24.1]} 11.
Be3 {[%clk 0:02:34]} 11... O-O-O {[%clk 0:02:17.6]} 12. Bxc5 {[%clk 0:02:30.7]}
12... Nxc5 {[%clk 0:02:17]} 13. Qe3 {[%clk 0:02:29.7]} 13... Ne6 {[%clk
0:02:12.3]} 14. Bxe6+ {[%clk 0:02:25]} 14... fxe6 {[%clk 0:02:12]} 15. Qxa7
{[%clk 0:02:23.8]} 15... Rdf8 {[%clk 0:02:05.9]} 16. b4 {[%clk 0:02:15.6]} 16...
Kd7 {[%clk 0:02:04.5]} 17. b5 {[%clk 0:02:12.5]} 17... Ra8 {[%clk 0:02:02.7]}
18. Qe3 {[%clk 0:02:08.2]} 18... c5 {[%clk 0:01:58.2]} 19. a4 {[%clk 0:02:02.1]}
19... b6 {[%clk 0:01:57.5]} 20. Ra2 {[%clk 0:01:54]} 20... g5 {[%clk 0:01:56.7]}
21. Rfa1 {[%clk 0:01:51.7]} 21... g4 {[%clk 0:01:56.3]} 22. h4 {[%clk
0:01:48.5]} 22... Nh5 {[%clk 0:01:50.6]} 23. g3 {[%clk 0:01:45.8]} 23... Rhf8
{[%clk 0:01:48.7]} 24. a5 {[%clk 0:01:42.6]} 24... Rf3 {[%clk 0:01:32.2]} 25.
Qxh6 {[%clk 0:01:26.1]} 25... Nxg3 {[%clk 0:01:29.8]} 26. Qg7+ {[%clk
0:01:21.4]} 26... Kd6 {[%clk 0:01:27.4]} 27. Qxc7+ {[%clk 0:01:16.2]} 27... Kxc7
{[%clk 0:01:27.2]} 28. axb6+ {[%clk 0:01:14.4]} 28... Kxb6 {[%clk 0:01:25.6]}
29. Rxa8 {[%clk 0:01:13.4]} 29... Nh5 {[%clk 0:01:21.4]} 30. Rb8+ {[%clk
0:01:10]} 30... Kc7 {[%clk 0:01:20.2]} 31. Rh8 {[%clk 0:01:08.2]} 31... Nf4
{[%clk 0:01:11.2]} 32. Ra6 {[%clk 0:01:04.2]} 32... g3 {[%clk 0:01:09.9]} 33.
Rh7+ {[%clk 0:01:02.6]} 33... Kb8 {[%clk 0:01:08.1]} 34. Rb6+ {[%clk 0:00:34.7]}
34... Kc8 {[%clk 0:01:05.1]} 35. fxg3 {[%clk 0:00:23.5]} 35... Rxg3+ {[%clk
0:01:03.3]} 36. Kh1 {[%clk 0:00:22.3]} 36... Rg2 {[%clk 0:00:35.2]} 37. Ra6
{[%clk 0:00:17.2]} 37... Kb8 {[%clk 0:00:33]} 38. b6 {[%clk 0:00:16.9]} 38...
Rxc2 {[%clk 0:00:28.8]} 39. Raa7 {[%clk 0:00:14.3]} 39... Rc1+ {[%clk
0:00:27.7]} 40. Kh2 {[%clk 0:00:12.7]} 40... Rc2+ {[%clk 0:00:27.3]} 41. Kg3
{[%clk 0:00:12.3]} 41... Rg2+ {[%clk 0:00:26.4]} 42. Kf3 {[%clk 0:00:12.1]}
42... Rg8 {[%clk 0:00:23.9]} 43. Rhb7+ {[%clk 0:00:11.2]} 43... Kc8 {[%clk
0:00:22.4]} 44. Ra8+ {[%clk 0:00:11.7]} 44... Kxb7 {[%clk 0:00:21.9]} 45. Rxg8
{[%clk 0:00:12.3]} 45... Kxb6 {[%clk 0:00:22.5]} 46. Rf8 {[%clk 0:00:12.4]}
46... Nxd3 {[%clk 0:00:22]} 47. h5 {[%clk 0:00:11.6]} 47... Nf4 {[%clk
0:00:21.8]} 48. h6 {[%clk 0:00:11.3]} 48... Ng6 {[%clk 0:00:21.2]} 49. Rf6
{[%clk 0:00:11.2]} 49... Nh8 {[%clk 0:00:20.2]} 50. Rxe6+ {[%clk 0:00:11.3]}
50... Ka5 {[%clk 0:00:18.2]} 51. h7 {[%clk 0:00:11.5]} 51... Kb4 {[%clk
0:00:15.6]} 52. Nd5+ {[%clk 0:00:11.7]} 52... Kc4 {[%clk 0:00:13.8]} 53. Re8
{[%clk 0:00:11.4]} 53... Ng6 {[%clk 0:00:13.1]} 54. h8=Q {[%clk 0:00:11.5]}
54... Nxh8 {[%clk 0:00:12.6]} 55. Rxh8 {[%clk 0:00:12]} 55... Kd4 {[%clk
0:00:12.8]} 56. Rc8 {[%clk 0:00:11.4]} 56... c4 {[%clk 0:00:12.4]} 57. Rc7
{[%clk 0:00:11.4]} 57... Kd3 {[%clk 0:00:12.2]} 58. Re7 {[%clk 0:00:10.7]} 58...
Kd4 {[%clk 0:00:12]} 59. Rc7 {[%clk 0:00:10.8]} 59... Kd3 {[%clk 0:00:10.6]} 60.
Nb4+ {[%clk 0:00:10.5]} 60... Kd4 {[%clk 0:00:10.1]} 61. Nc2+ {[%clk 0:00:09.1]}
61... Kd3 {[%clk 0:00:10]} 62. Kg4 {[%clk 0:00:09.1]} 62... Kxc2 {[%clk
0:00:08.7]} 63. Rxc4+ {[%clk 0:00:09.2]} 63... Kd3 {[%clk 0:00:09.6]} 64. Ra4
{[%clk 0:00:08.7]} 64... Ke3 {[%clk 0:00:09.4]} 65. Kf5 {[%clk 0:00:08.7]} 65...
Kd3 {[%clk 0:00:07.8]} 66. Kxe5 {[%clk 0:00:09.1]} 66... Kc3 {[%clk 0:00:08]}
67. Rd4 {[%clk 0:00:08.2]} 67... Kb3 {[%clk 0:00:08.9]} 68. Kd5 {[%clk
0:00:07.5]} 68... Kc3 {[%clk 0:00:09.8]} 69. Kc5 {[%clk 0:00:07.3]} 69... Kb3
{[%clk 0:00:10.7]} 70. Rd3+ {[%clk 0:00:07.6]} 70... Kc2 {[%clk 0:00:10.7]} 71.
Kc4 {[%clk 0:00:06.8]} 71... Kb2 {[%clk 0:00:10.5]} 72. Rd2+ {[%clk 0:00:06.9]}
72... Kc1 {[%clk 0:00:10.2]} 73. Kc3 {[%clk 0:00:07]} 73... Kb1 {[%clk
0:00:09.7]} 74. Re2 {[%clk 0:00:07.8]} 74... Kc1 {[%clk 0:00:07.8]} 75. Re1#
{[%clk 0:00:07.1]} 1-0

[Event "Betsys MČR v online bleskovém šachu 2021"]
[Site "Chess.com"]
[Date "2021.04.17"]
[Round "13"]
[White "jachymcarostrelec4"]
[Black "Zavurka1975"]
[Result "0-1"]
[WhiteElo "1976"]
[BlackElo "2198"]
[TimeControl "180+1"]
[EndTime "11:13:08 PDT"]
[Termination "Uživatel Zavurka1975 zvítězil matem"]

1. d4 {[%clk 0:03:00.9]} 1... Nf6 {[%clk 0:02:59.2]} 2. Nf3 {[%clk 0:02:59.6]}
2... d6 {[%clk 0:02:58.3]} 3. c4 {[%clk 0:02:58.6]} 3... Nbd7 {[%clk 0:02:58.1]}
4. Nc3 {[%clk 0:02:58.5]} 4... e5 {[%clk 0:02:57.9]} 5. d5 {[%clk 0:02:57.4]}
5... Be7 {[%clk 0:02:56.3]} 6. e4 {[%clk 0:02:56.9]} 6... Nc5 {[%clk 0:02:55.5]}
7. Qc2 {[%clk 0:02:53.5]} 7... a5 {[%clk 0:02:50.5]} 8. Be2 {[%clk 0:02:51.3]}
8... O-O {[%clk 0:02:49.9]} 9. O-O {[%clk 0:02:49.6]} 9... Ne8 {[%clk
0:02:47.4]} 10. Be3 {[%clk 0:02:31.1]} 10... b6 {[%clk 0:02:45.3]} 11. Nd2
{[%clk 0:02:28.5]} 11... f5 {[%clk 0:02:42.3]} 12. f3 {[%clk 0:02:27.2]} 12...
Bg5 {[%clk 0:02:41.9]} 13. Bf2 {[%clk 0:02:16]} 13... g6 {[%clk 0:02:34.5]} 14.
a3 {[%clk 0:02:10.8]} 14... Bxd2 {[%clk 0:02:32.5]} 15. Qxd2 {[%clk 0:02:01.4]}
15... Nb3 {[%clk 0:02:32.3]} 16. Qc2 {[%clk 0:02:01.2]} 16... Nxa1 {[%clk
0:02:31.7]} 17. Rxa1 {[%clk 0:02:02.1]} 17... Nf6 {[%clk 0:02:20.5]} 18. Bh4
{[%clk 0:01:57]} 18... Bd7 {[%clk 0:02:16.7]} 19. Rb1 {[%clk 0:01:55.9]} 19...
Qe8 {[%clk 0:02:12.2]} 20. h3 {[%clk 0:01:44.3]} 20... Nh5 {[%clk 0:02:03.4]}
21. b4 {[%clk 0:01:30.6]} 21... axb4 {[%clk 0:01:59.4]} 22. axb4 {[%clk
0:01:31.5]} 22... Nf4 {[%clk 0:01:51.2]} 23. Bf2 {[%clk 0:01:24.9]} 23... Qe7
{[%clk 0:01:48.1]} 24. Kh2 {[%clk 0:01:11.5]} 24... Qg5 {[%clk 0:01:27.2]} 25.
g3 {[%clk 0:01:10.8]} 25... Nxe2 {[%clk 0:01:18]} 26. Qxe2 {[%clk 0:01:09.3]}
26... fxe4 {[%clk 0:01:12.5]} 27. Nxe4 {[%clk 0:01:08.6]} 27... Qh5 {[%clk
0:01:12.3]} 28. g4 {[%clk 0:01:04.2]} 28... Qh6 {[%clk 0:01:02.7]} 29. Be3
{[%clk 0:01:03.5]} 29... Qg7 {[%clk 0:01:00.5]} 30. c5 {[%clk 0:00:58.8]} 30...
bxc5 {[%clk 0:00:43.8]} 31. bxc5 {[%clk 0:00:59.7]} 31... Qf7 {[%clk 0:00:42.2]}
32. c6 {[%clk 0:00:34.3]} 32... Bc8 {[%clk 0:00:40.3]} 33. Rd1 {[%clk
0:00:13.2]} 33... Qxf3 {[%clk 0:00:37.7]} 34. Qxf3 {[%clk 0:00:12.8]} 34... Rxf3
{[%clk 0:00:37.2]} 35. Bg5 {[%clk 0:00:13.7]} 35... Ra2+ {[%clk 0:00:32.5]} 36.
Kg1 {[%clk 0:00:11.7]} 36... Kf7 {[%clk 0:00:27.7]} 37. Bd8 {[%clk 0:00:09.4]}
37... Ra7 {[%clk 0:00:25.7]} 38. Ng5+ {[%clk 0:00:09.1]} 38... Ke8 {[%clk
0:00:24.6]} 39. Nxf3 {[%clk 0:00:08.6]} 39... Kxd8 {[%clk 0:00:24.4]} 40. Kg2
{[%clk 0:00:07.9]} 40... Ra2+ {[%clk 0:00:22.5]} 41. Kg3 {[%clk 0:00:07.9]}
41... Ba6 {[%clk 0:00:21.3]} 42. Ng5 {[%clk 0:00:07.2]} 42... Ra3+ {[%clk
0:00:20.4]} 43. Kh4 {[%clk 0:00:05.9]} 43... h6 {[%clk 0:00:19.4]} 44. Nf7+
{[%clk 0:00:04.9]} 44... Ke7 {[%clk 0:00:18]} 45. Nxh6 {[%clk 0:00:05.8]} 45...
Kf6 {[%clk 0:00:17.7]} 46. g5+ {[%clk 0:00:06]} 46... Kg7 {[%clk 0:00:15.8]} 47.
Ng4 {[%clk 0:00:06.9]} 47... Ra4 {[%clk 0:00:15.3]} 48. Kg3 {[%clk 0:00:06.1]}
48... Bc8 {[%clk 0:00:15]} 49. Rf1 {[%clk 0:00:04]} 49... Bxg4 {[%clk
0:00:14.7]} 50. hxg4 {[%clk 0:00:04.9]} 50... Rd4 {[%clk 0:00:14.2]} 51. Ra1
{[%clk 0:00:04.5]} 51... Rxd5 {[%clk 0:00:13.7]} 52. Ra7 {[%clk 0:00:05.4]}
52... Rc5 {[%clk 0:00:12.3]} 53. Rxc7+ {[%clk 0:00:06.3]} 53... Kf8 {[%clk
0:00:12.3]} 54. Rc8+ {[%clk 0:00:05.1]} 54... Ke7 {[%clk 0:00:12]} 55. Rg8
{[%clk 0:00:03.7]} 55... Rxc6 {[%clk 0:00:10.7]} 56. Rxg6 {[%clk 0:00:03.6]}
56... Kf7 {[%clk 0:00:09.7]} 57. Rf6+ {[%clk 0:00:03.6]} 57... Ke7 {[%clk
0:00:10]} 58. Kf3 {[%clk 0:00:04.5]} 58... Rc3+ {[%clk 0:00:08.7]} 59. Ke4
{[%clk 0:00:04.3]} 59... Rc4+ {[%clk 0:00:08.6]} 60. Kf5 {[%clk 0:00:04.5]}
60... Rf4+ {[%clk 0:00:08.5]} 61. Kg6 {[%clk 0:00:04.6]} 61... d5 {[%clk
0:00:06.8]} 62. Rxf4 {[%clk 0:00:02.8]} 62... exf4 {[%clk 0:00:06.5]} 63. Kh7
{[%clk 0:00:03.7]} 63... f3 {[%clk 0:00:05.2]} 64. g6 {[%clk 0:00:04.6]} 64...
f2 {[%clk 0:00:05.4]} 65. g7 {[%clk 0:00:05.5]} 65... f1=Q {[%clk 0:00:05]} 66.
g8=Q {[%clk 0:00:06.4]} 66... Qh3+ {[%clk 0:00:03.5]} 67. Kg7 {[%clk 0:00:05.5]}
67... Qxg4+ {[%clk 0:00:03.3]} 68. Kh8 {[%clk 0:00:06.4]} 68... Qxg8+ {[%clk
0:00:03.1]} 69. Kxg8 {[%clk 0:00:07.3]} 69... d4 {[%clk 0:00:03.2]} 70. Kg7
{[%clk 0:00:08.2]} 70... d3 {[%clk 0:00:03.4]} 71. Kg6 {[%clk 0:00:09.1]} 71...
d2 {[%clk 0:00:03.8]} 72. Kg5 {[%clk 0:00:10]} 72... d1=Q {[%clk 0:00:04.3]} 73.
Kf4 {[%clk 0:00:10.9]} 73... Qd6+ {[%clk 0:00:04.3]} 74. Ke3 {[%clk 0:00:11.8]}
74... Ke6 {[%clk 0:00:04.6]} 75. Kf3 {[%clk 0:00:11.5]} 75... Qd5+ {[%clk
0:00:05]} 76. Ke3 {[%clk 0:00:12.4]} 76... Ke5 {[%clk 0:00:05.2]} 77. Kf2 {[%clk
0:00:12.2]} 77... Qd4+ {[%clk 0:00:05.7]} 78. Kg3 {[%clk 0:00:13.1]} 78... Qf4+
{[%clk 0:00:04.8]} 79. Kh3 {[%clk 0:00:14]} 79... Kf5 {[%clk 0:00:04.7]} 80. Kg2
{[%clk 0:00:14.9]} 80... Qe3 {[%clk 0:00:04.7]} 81. Kh1 {[%clk 0:00:14.7]} 81...
Qd2 {[%clk 0:00:04.3]} 82. Kg1 {[%clk 0:00:14.6]} 82... Kf4 {[%clk 0:00:04.6]}
83. Kf1 {[%clk 0:00:15.5]} 83... Kf3 {[%clk 0:00:04.6]} 84. Kg1 {[%clk
0:00:16.4]} 84... Qg2# {[%clk 0:00:04.8]} 0-1

[Event "Betsys MČR v online bleskovém šachu 2021"]
[Site "Chess.com"]
[Date "2021.04.17"]
[Round "13"]
[White "rolkento"]
[Black "Bolavey_Kotnik"]
[Result "0-1"]
[WhiteElo "2251"]
[BlackElo "2372"]
[TimeControl "180+1"]
[EndTime "11:13:17 PDT"]
[Termination "Uživatel Bolavey_Kotnik zvítězil na čas"]

1. e4 {[%clk 0:03:00.9]} 1... c5 {[%clk 0:02:59.4]} 2. c3 {[%clk 0:03:01.1]}
2... d6 {[%clk 0:02:52.4]} 3. f4 {[%clk 0:03:01]} 3... e6 {[%clk 0:02:51.8]} 4.
Nf3 {[%clk 0:03:01]} 4... Nf6 {[%clk 0:02:51]} 5. Qc2 {[%clk 0:03:01.1]} 5...
Be7 {[%clk 0:02:51.1]} 6. Bb5+ {[%clk 0:03:00.6]} 6... Bd7 {[%clk 0:02:47.3]} 7.
Bxd7+ {[%clk 0:03:00.1]} 7... Nbxd7 {[%clk 0:02:47.4]} 8. O-O {[%clk 0:03:00.7]}
8... c4 {[%clk 0:02:36.9]} 9. b3 {[%clk 0:03:00.1]} 9... d5 {[%clk 0:02:28.9]}
10. e5 {[%clk 0:02:59.5]} 10... Ng4 {[%clk 0:02:28.2]} 11. d4 {[%clk 0:02:47.4]}
11... cxd3 {[%clk 0:02:24.4]} 12. Qxd3 {[%clk 0:02:47.4]} 12... a6 {[%clk
0:02:07]} 13. h3 {[%clk 0:02:42.5]} 13... Nh6 {[%clk 0:02:00]} 14. Nd4 {[%clk
0:02:42.5]} 14... Nc5 {[%clk 0:01:49.2]} 15. Qc2 {[%clk 0:02:23]} 15... g6
{[%clk 0:01:44.8]} 16. Be3 {[%clk 0:02:16.3]} 16... Nf5 {[%clk 0:01:41.4]} 17.
Nxf5 {[%clk 0:02:14.9]} 17... gxf5 {[%clk 0:01:42.3]} 18. Bxc5 {[%clk
0:02:12.4]} 18... Bxc5+ {[%clk 0:01:42.5]} 19. Kh2 {[%clk 0:02:12.2]} 19... Rg8
{[%clk 0:01:34.4]} 20. Qe2 {[%clk 0:01:44.2]} 20... Qh4 {[%clk 0:01:25.2]} 21.
Qe1 {[%clk 0:01:43.1]} 21... Qxe1 {[%clk 0:01:03.8]} 22. Rxe1 {[%clk 0:01:44]}
22... Rc8 {[%clk 0:01:02]} 23. Rf1 {[%clk 0:01:31]} 23... Ke7 {[%clk 0:00:43.9]}
24. Rf3 {[%clk 0:01:30.5]} 24... d4 {[%clk 0:00:43.1]} 25. c4 {[%clk 0:01:26]}
25... b5 {[%clk 0:00:42.6]} 26. cxb5 {[%clk 0:01:23]} 26... axb5 {[%clk
0:00:43.5]} 27. Nd2 {[%clk 0:01:22.4]} 27... Bb4 {[%clk 0:00:39.7]} 28. Rd3
{[%clk 0:01:18.2]} 28... Rc2 {[%clk 0:00:38.3]} 29. Rd1 {[%clk 0:01:10.5]} 29...
Bc3 {[%clk 0:00:37]} 30. a4 {[%clk 0:01:08]} 30... bxa4 {[%clk 0:00:35.5]} 31.
bxa4 {[%clk 0:01:08.9]} 31... Ra2 {[%clk 0:00:35.6]} 32. Kh1 {[%clk 0:01:01.9]}
32... Rb8 {[%clk 0:00:26.4]} 33. Nf3 {[%clk 0:01:00.2]} 33... Rbb2 {[%clk
0:00:22.3]} 34. g4 {[%clk 0:00:40.8]} 34... fxg4 {[%clk 0:00:20.3]} 35. hxg4
{[%clk 0:00:41.7]} 35... Rf2 {[%clk 0:00:19.4]} 36. f5 {[%clk 0:00:39.3]} 36...
exf5 {[%clk 0:00:17.7]} 37. gxf5 {[%clk 0:00:40.2]} 37... Rxa4 {[%clk
0:00:16.8]} 38. Nxd4 {[%clk 0:00:27.6]} 38... Bxd4 {[%clk 0:00:16.1]} 39. Rxd4
{[%clk 0:00:28]} 39... Rxd4 {[%clk 0:00:16]} 40. Rxd4 {[%clk 0:00:25.5]} 40...
Rxf5 {[%clk 0:00:16.1]} 41. Rh4 {[%clk 0:00:19.8]} 41... h5 {[%clk 0:00:15.5]}
42. Re4 {[%clk 0:00:14.1]} 42... Ke6 {[%clk 0:00:15.4]} 43. Kg2 {[%clk
0:00:13.1]} 43... Rxe5 {[%clk 0:00:15.3]} 44. Ra4 {[%clk 0:00:11.7]} 44... Kf5
{[%clk 0:00:15]} 45. Ra8 {[%clk 0:00:08.1]} 45... Re3 {[%clk 0:00:13.3]} 46. Rb8
{[%clk 0:00:07.5]} 46... Kg4 {[%clk 0:00:12.6]} 47. Rb4+ {[%clk 0:00:07.3]}
47... Kg5 {[%clk 0:00:12.8]} 48. Rb8 {[%clk 0:00:07.6]} 48... f5 {[%clk
0:00:12.9]} 49. Ra8 {[%clk 0:00:06]} 49... f4 {[%clk 0:00:12.7]} 50. Rg8+ {[%clk
0:00:05]} 50... Kh4 {[%clk 0:00:13]} 51. Kf2 {[%clk 0:00:05.2]} 51... Ra3 {[%clk
0:00:12.6]} 52. Rg7 {[%clk 0:00:04.9]} 52... Rg3 {[%clk 0:00:12.6]} 53. Rf7
{[%clk 0:00:04.6]} 53... Kg4 {[%clk 0:00:11.8]} 54. Rg7+ {[%clk 0:00:04]} 54...
Kh3 {[%clk 0:00:10.6]} 55. Rf7 {[%clk 0:00:03.5]} 55... Kg4 {[%clk 0:00:10.5]}
56. Rg7+ {[%clk 0:00:03.7]} 56... Kh3 {[%clk 0:00:10.1]} 57. Rf7 {[%clk
0:00:04.1]} 57... Rg2+ {[%clk 0:00:09.9]} 58. Kf3 {[%clk 0:00:03.2]} 58... h4
{[%clk 0:00:09.7]} 59. Rxf4 {[%clk 0:00:02.4]} 59... Ra2 {[%clk 0:00:09.5]} 60.
Rb4 {[%clk 0:00:01.6]} 60... Ra3+ {[%clk 0:00:09.7]} 61. Kf2 {[%clk 0:00:01.2]}
61... Ra2+ {[%clk 0:00:09.4]} 62. Kf3 {[%clk 0:00:01.2]} 62... Ra1 {[%clk
0:00:09.9]} 63. Kf2 {[%clk 0:00:01.8]} 63... Ra3 {[%clk 0:00:09.5]} 64. Kf1
{[%clk 0:00:01.5]} 64... Rg3 {[%clk 0:00:10]} 65. Kf2 {[%clk 0:00:01.3]} 65...
Rg2+ {[%clk 0:00:10.2]} 66. Kf1 {[%clk 0:00:01.9]} 66... Rg5 {[%clk 0:00:09.8]}
67. Ra4 {[%clk 0:00:02.5]} 67... Kg3 {[%clk 0:00:09]} 68. Ra3+ {[%clk
0:00:02.5]} 68... Kh2 {[%clk 0:00:09.4]} 69. Kf2 {[%clk 0:00:02.8]} 69... h3
{[%clk 0:00:09.2]} 70. Ra8 {[%clk 0:00:02.1]} 70... Rf5+ {[%clk 0:00:09.5]} 71.
Ke2 {[%clk 0:00:02.3]} 71... Kg2 {[%clk 0:00:09.3]} 72. Rg8+ {[%clk 0:00:02.6]}
72... Kh2 {[%clk 0:00:09.7]} 73. Rg7 {[%clk 0:00:03]} 73... Rf4 {[%clk
0:00:10.1]} 74. Rg8 {[%clk 0:00:02.5]} 74... Ra4 {[%clk 0:00:08.1]} 75. Kf2
{[%clk 0:00:02.5]} 75... Ra2+ {[%clk 0:00:08.2]} 76. Kf1 {[%clk 0:00:02.7]}
76... Rg2 {[%clk 0:00:08.4]} 77. Rf8 {[%clk 0:00:02.1]} 77... Rg4 {[%clk
0:00:07.7]} 78. Rf2+ {[%clk 0:00:01.9]} 78... Kg3 {[%clk 0:00:07]} 79. Ra2
{[%clk 0:00:01.4]} 79... h2 {[%clk 0:00:06.9]} 80. Ra3+ {[%clk 0:00:01.3]} 80...
Kh4 {[%clk 0:00:07.2]} 81. Kf2 {[%clk 0:00:01.6]} 81... h1=Q {[%clk 0:00:07.5]}
82. Ra8 {[%clk 0:00:02.5]} 82... Qxa8 {[%clk 0:00:07.1]} 0-1